[Event "94th FRA-ch Open C 2019"]
[Site "Chartres"]
[Date "2019.08.23"]
[Round "7.6"]
[White "Pham, Virgile"]
[Black "Croisille, Shanti"]
[Result "1-0"]
[ECO "B53"]
[WhiteElo "1622"]
[BlackElo "1695"]
[Annotator "NA"]
[PlyCount "117"]
[EventDate "2019.08.17"]
[EventType "swiss"]
[EventCountry "FRA"]
[SourceTitle "playchess.com"]
[Source "ChessBase"]
[SourceQuality "1"]
[TimeControl "40/5400+30:1800+30"]

1. e4 {[%emt 0:00:00]} c5 {[%emt 0:00:00]} 2. Nf3 {[%emt 0:00:00]} d6 {[%emt 0:00:00]} 3. d4 {[%emt 0:00:00]} cxd4 {[%emt 0:00:00]} 4. Qxd4 {[%emt 0:00:32]} Nc6 {[%emt 0:00:01]} 5. Bb5 {[%emt 0:00:14]} Bd7 {[%emt 0:00:10]} 6. Bxc6 {[%emt 0:00:33]} Bxc6 {[%emt 0:00:09]} 7. Nc3 {[%emt 0:00:31]} Nf6 {[%emt 0:00:45]} 8. Bg5 {[%emt 0:03:38]} e6 {[%emt 0:00:28]} 9. Bxf6 {[%emt 0:03:43]} gxf6 {[%emt 0:00:13]} 10. Qe3 {[%emt 0:02:57]} Rg8 {[%emt 0:03:19]} 11. O-O {[%emt 0:02:48]} Qa5 {[%emt 0:04:48]} 12. Nd4 {[%emt 0:13:13]} Bd7 {[%emt 0:08:51]} 13. Rad1 {[%emt 0:01:25]} Qh5 {[%emt 0:13:38]} 14. f4 {[%emt 0:03:51]} O-O-O {[%emt 0:17:14]} 15. f5 {[%emt 0:02:56]} Bh6 {[%emt 0:05:07]} 16. Qf3 {[%emt 0:05:06]} Qxf3 {[%emt 0:05:36]} 17. Rxf3 {[%emt 0:00:25]} a6 {[%emt 0:02:07]} 18. fxe6 {[%emt 0:01:21]} fxe6 {[%emt 0:00:13]} 19. Rxf6 {[%emt 0:01:01]} Bg5 {[%emt 0:00:43]} 20. Rf7 {[%emt 0:06:30]} h6 {[%emt 0:00:32]} 21. Nf3 {[%emt 0:01:40]} Be3+ {[%emt 0:01:33]} 22. Kh1 {[%emt 0:00:42]} Bc6 {[%emt 0:02:02]} 23. Re1 {[%emt 0:03:18]} Ba7 {[%emt 0:01:42]} 24. Rf6 {[%emt 0:01:20]} d5 {[%emt 0:05:59]} 25. Rxe6 {[%emt 0:03:30]} dxe4 {[%emt 0:00:19]} 26. Nxe4 {[%emt 0:01:27]} Rdf8 {[%emt 0:02:08]} 27. Rf6 {[%emt 0:02:12]} Rxf6 {[%emt 0:01:18]} 28. Nxf6 {[%emt 0:00:15]} Rg6 {[%emt 0:01:21]} 29. Nh5 {[%emt 0:01:19]} Bb5 {[%emt 0:04:02]} 30. Nf4 {[%emt 0:02:35]} Rc6 {[%emt 0:00:40]} 31. Re8+ {[%emt 0:08:13]} Kc7 {[%emt 0:02:03]} 32. Re7+ {[%emt 0:05:59]} Kc8 {[%emt 0:00:26]} 33. c3 {[%emt 0:03:27]} Rd6 {[%emt 0:00:54]} 34. h3 {[%emt 0:05:21]} Bc6 {[%emt 0:01:51]} 35. Re1 {[%emt 0:05:28]} Bf2 {[%emt 0:05:53]} 36. Rf1 {[%emt 0:01:09]} Be3 {[%emt 0:00:30]} 37. Ne2 {[%emt 0:03:37]} Bb5 {[%emt 0:04:05]} 38. Nfd4 {[%emt 0:00:34]} Bxe2 {[%emt 0:01:01]} 39. Rf8+ {[%emt 0:00:58]} Kc7 {[%emt 0:01:02]} 40. Nxe2 {[%emt 0:06:12]} Rd2 {[%emt 0:00:23]} 41. Nf4 {[%emt 0:25:30]} Kd7 {[%emt 0:34:27]} 42. Ng6 {[%emt 0:01:36]} Rxb2 {[%emt 0:02:19]} 43. Ne5+ {[%emt 0:01:04]} Kc7 {[%emt 0:00:52]} 44. Nc4 {[%emt 0:01:53]} Rb1+ {[%emt 0:00:09]} 45. Kh2 {[%emt 0:00:05]} Bg5 {[%emt 0:01:04]} 46. Rf7+ {[%emt 0:00:30]} Kb8 {[%emt 0:00:18]} 47. Kg3 {[%emt 0:01:39]} Rc1 {[%emt 0:00:43]} 48. Rf3 {[%emt 0:00:45]} Kc7 {[%emt 0:00:00]} 49. h4 {[%emt 0:00:00]} Be7 {[%emt 0:00:00]} 50. Ne3 {[%emt 0:00:00]} Bd6+ {[%emt 0:00:00]} 51. Kg4 {[%emt 0:00:00]} Be5 {[%emt 0:00:00]} 52. Kh5 {[%emt 0:00:00]} Kc6 {[%emt 0:00:00]} 53. Kxh6 {[%emt 0:00:00]} Bxc3 {[%emt 0:00:00]} 54. g4 {[%emt 0:00:00]} Bd2 {[%emt 0:00:00]} 55. g5 {[%emt 0:00:00]} Ra1 {[%emt 0:00:00]} 56. g6 {[%emt 0:00:00]} Rg1 {[%emt 0:00:00]} 57. h5 {[%emt 0:00:00]} b5 {[%emt 0:00:00]} 58. Kh7 {[%emt 0:00:00]} Bc3 {[%emt 0:00:00]} 59. h6 {[%emt 0:06:28] Kd5} 1-0

[Event "94th FRA-ch Open C 2019"]
[Site "Chartres"]
[Date "2019.08.24"]
[Round "8.1"]
[White "Leclerc, Alain"]
[Black "Sithisak, Remi"]
[Result "1-0"]
[ECO "B23"]
[WhiteElo "1787"]
[BlackElo "1635"]
[Annotator "NA"]
[PlyCount "61"]
[EventDate "2019.08.17"]
[EventType "swiss"]
[EventCountry "FRA"]
[SourceTitle "playchess.com"]
[Source "ChessBase"]
[SourceQuality "1"]
[TimeControl "40/5400+30:1800+30"]

1. e4 {[%emt 0:00:00]} c5 {[%emt 0:00:00]} 2. Nc3 {[%emt 0:00:00]} e6 {[%emt 0:00:24]} 3. Nge2 {[%emt 0:01:25]} a6 {[%emt 0:06:08]} 4. a4 {[%emt 0:01:32]} d5 {[%emt 0:01:25]} 5. exd5 {[%emt 0:00:08]} exd5 {[%emt 0:00:37]} 6. d4 {[%emt 0:00:06]} Nc6 {[%emt 0:07:11]} 7. dxc5 {[%emt 0:05:35]} Bxc5 {[%emt 0:15:59]} 8. Nxd5 {[%emt 0:15:19]} Nge7 {[%emt 0:09:02]} 9. Nec3 {[%emt 0:07:17]} Be6 {[%emt 0:08:55]} 10. Bc4 {[%emt 0:17:29]} Nb4 {[%emt 0:21:26]} 11. Be3 {[%emt 0:23:51]} Nbxd5 {[%emt 0:06:35]} 12. Bxc5 {[%emt 0:05:35]} Nxc3 {[%emt 0:00:42]} 13. Qxd8+ {[%emt 0:00:08]} Rxd8 {[%emt 0:00:49]} 14. Bxe6 {[%emt 0:00:20]} Ne4 {[%emt 0:05:18]} 15. Bxe7 {[%emt 0:00:37]} Kxe7 {[%emt 0:00:15]} 16. Bf5 {[%emt 0:06:05]} Nc5 {[%emt 0:05:36]} 17. O-O {[%emt 0:00:44]} Kf6 {[%emt 0:03:34]} 18. Bg4 {[%emt 0:03:26]} Rd2 {[%emt 0:01:28]} 19. Bd1 {[%emt 0:03:53]} Rhd8 {[%emt 0:01:14]} 20. a5 {[%emt 0:01:17]} Ne4 {[%emt 0:02:19]} 21. Bf3 {[%emt 0:01:28]} Nd6 {[%emt 0:00:46]} 22. Rac1 {[%emt 0:00:59]} Rd7 {[%emt 0:00:44]} 23. Rfd1 {[%emt 0:00:23]} Nc4 {[%emt 0:00:25]} 24. Rxd2 {[%emt 0:00:33]} Nxd2 {[%emt 0:00:14]} 25. Be2 {[%emt 0:01:28]} Rc7 {[%emt 0:00:48]} 26. Bd3 {[%emt 0:00:35]} Nb3 {[%emt 0:00:28]} 27. Re1 {[%emt 0:00:16]} Nxa5 {[%emt 0:00:08]} 28. f4 {[%emt 0:00:39]} Nc6 {[%emt 0:00:46]} 29. Re4 {[%emt 0:00:46]} a5 {[%emt 0:00:39]} 30. g4 {[%emt 0:01:23]} Nb4 {[%emt 0:00:27]} 31. g5+ {[%emt 0:00:09]} 1-0

[Event "94th FRA-ch Open C 2019"]
[Site "Chartres"]
[Date "2019.08.24"]
[Round "8.2"]
[White "Chaillou, Vincent"]
[Black "Cresswell, Patrick"]
[Result "0-1"]
[ECO "B07"]
[WhiteElo "1654"]
[BlackElo "1664"]
[Annotator "NA"]
[PlyCount "98"]
[EventDate "2019.08.17"]
[EventType "swiss"]
[EventCountry "FRA"]
[SourceTitle "playchess.com"]
[Source "ChessBase"]
[SourceQuality "1"]
[TimeControl "40/5400+30:1800+30"]

1. e4 {[%emt 0:00:00]} d6 {[%emt 0:00:00]} 2. d4 {[%emt 0:00:00]} Nf6 {[%emt 0:00:00]} 3. Nc3 {[%emt 0:00:00]} g6 {[%emt 0:00:00]} 4. Be3 {[%emt 0:05:35]} Bg7 {[%emt 0:00:26]} 5. Qd2 {[%emt 0:00:08]} c6 {[%emt 0:00:57]} 6. Bh6 {[%emt 0:01:01]} Bxh6 {[%emt 0:00:41]} 7. Qxh6 {[%emt 0:00:08]} b5 {[%emt 0:00:24]} 8. e5 {[%emt 0:05:59]} dxe5 {[%emt 0:03:09]} 9. dxe5 {[%emt 0:00:21]} b4 {[%emt 0:07:09]} 10. exf6 {[%emt 0:09:10]} bxc3 {[%emt 0:00:10]} 11. bxc3 {[%emt 0:00:17]} exf6 {[%emt 0:00:29]} 12. Bc4 {[%emt 0:02:52]} Qe7+ {[%emt 0:05:41]} 13. Ne2 {[%emt 0:02:36]} Be6 {[%emt 0:05:45]} 14. Qg7 {[%emt 0:02:07]} Qf8 {[%emt 0:01:27]} 15. Qxf8+ {[%emt 0:10:21]} Kxf8 {[%emt 0:00:21]} 16. Bb3 {[%emt 0:00:36]} Nd7 {[%emt 0:01:51]} 17. Nd4 {[%emt 0:01:14]} c5 {[%emt 0:32:56]} 18. Bxe6 {[%emt 0:01:39]} fxe6 {[%emt 0:00:30]} 19. Nxe6+ {[%emt 0:00:12]} Kf7 {[%emt 0:00:04]} 20. Nc7 {[%emt 0:01:32]} Rac8 {[%emt 0:03:53]} 21. Nb5 {[%emt 0:00:14]} Rhe8+ {[%emt 0:00:34]} 22. Kd2 {[%emt 0:04:57]} Rc6 {[%emt 0:02:04]} 23. Rhe1 {[%emt 0:07:02]} Ne5 {[%emt 0:00:28]} 24. Re4 {[%emt 0:10:28]} a6 {[%emt 0:14:06]} 25. Na3 {[%emt 0:11:01]} f5 {[%emt 0:00:26]} 26. Rh4 {[%emt 0:03:13]} h5 {[%emt 0:04:08]} 27. Nc4 {[%emt 0:06:32]} Nxc4+ {[%emt 0:00:07]} 28. Rxc4 {[%emt 0:00:08]} Rd6+ {[%emt 0:00:03]} 29. Kc1 {[%emt 0:00:25]} Re2 {[%emt 0:00:08]} 30. Kb2 {[%emt 0:01:55]} Rdd2 {[%emt 0:02:20]} 31. Rxc5 {[%emt 0:01:57]} Rxf2 {[%emt 0:00:23]} 32. Rc6 {[%emt 0:00:20]} Rxg2 {[%emt 0:00:24]} 33. Rxa6 {[%emt 0:00:08]} Rxc2+ {[%emt 0:00:05]} 34. Kb3 {[%emt 0:00:12]} Rxh2 {[%emt 0:00:16]} 35. Rd1 {[%emt 0:01:18]} Rb2+ {[%emt 0:01:07]} 36. Kc4 {[%emt 0:00:06]} Rxa2 {[%emt 0:00:09]} 37. Rc6 {[%emt 0:01:18]} Ra7 {[%emt 0:02:07]} 38. Rg1 {[%emt 0:00:39]} Rh4+ {[%emt 0:00:14]} 39. Kb5 {[%emt 0:00:32]} Rg4 {[%emt 0:00:45]} 40. Rd1 {[%emt 0:00:12]} Re7 {[%emt 0:02:50]} 41. c4 {[%emt 0:30:49]} f4 {[%emt 0:30:35]} 42. c5 {[%emt 0:00:49]} f3 {[%emt 0:00:46]} 43. Rdd6 {[%emt 0:00:06]} Rf4 {[%emt 0:00:30]} 44. Rd1 {[%emt 0:01:17]} f2 {[%emt 0:00:04]} 45. Rcd6 {[%emt 0:00:27]} f1=Q+ {[%emt 0:00:46]} 46. Rxf1 {[%emt 0:00:11]} Rxf1 {[%emt 0:00:03]} 47. c6 {[%emt 0:00:09]} Rc1 {[%emt 0:00:20]} 48. Kb6 {[%emt 0:00:12]} Rxc6+ {[%emt 0:00:20]} 49. Kxc6 {[%emt 0:00:08]} Re6 {[%emt 0:00:03]} 0-1

[Event "94th FRA-ch Open C 2019"]
[Site "Chartres"]
[Date "2019.08.24"]
[Round "8.3"]
[White "Cregut, Marian"]
[Black "Pham, Virgile"]
[Result "1-0"]
[ECO "C63"]
[WhiteElo "1717"]
[BlackElo "1622"]
[Annotator "NA"]
[PlyCount "29"]
[EventDate "2019.08.17"]
[EventType "swiss"]
[EventCountry "FRA"]
[SourceTitle "playchess.com"]
[Source "ChessBase"]
[SourceQuality "1"]
[TimeControl "40/5400+30:1800+30"]

1. e4 {[%emt 0:00:00]} e5 {[%emt 0:00:00]} 2. Nf3 {[%emt 0:00:03]} f5 {[%emt 0:00:00]} 3. exf5 {[%emt 0:00:46]} Nc6 {[%emt 0:00:17]} 4. Bb5 {[%emt 0:04:39]} d6 {[%emt 0:01:36]} 5. O-O {[%emt 0:02:37]} Nf6 {[%emt 0:01:19]} 6. d4 {[%emt 0:02:58]} e4 {[%emt 0:08:44]} 7. d5 {[%emt 0:09:39]} Bd7 {[%emt 0:04:39]} 8. Re1 {[%emt 0:04:08]} Be7 {[%emt 0:05:55]} 9. Ng5 {[%emt 0:05:36]} Nb4 {[%emt 0:03:50]} 10. Ne6 {[%emt 0:01:41]} Qc8 {[%emt 0:00:50]} 11. Bxd7+ {[%emt 0:05:30]} Qxd7 {[%emt 0:04:38]} 12. Nc3 {[%emt 0:05:44]} g6 {[%emt 0:04:18]} 13. a3 {[%emt 0:05:11]} Na6 {[%emt 0:01:05]} 14. Nxe4 {[%emt 0:03:26]} gxf5 {[%emt 0:02:02]} 15. Nxf6+ {[%emt 0:00:35]} 1-0

[Event "94th FRA-ch Open C 2019"]
[Site "Chartres"]
[Date "2019.08.24"]
[Round "8.4"]
[White "Shefay, Paul"]
[Black "Guliyev, Tofig"]
[Result "0-1"]
[ECO "A25"]
[WhiteElo "1680"]
[BlackElo "1615"]
[Annotator "NA"]
[PlyCount "57"]
[EventDate "2019.08.17"]
[EventType "swiss"]
[EventCountry "FRA"]
[SourceTitle "playchess.com"]
[Source "ChessBase"]
[SourceQuality "1"]
[TimeControl "40/5400+30:1800+30"]

1. c4 {[%emt 0:00:40]} e5 {[%emt 0:00:05]} 2. Nc3 {[%emt 0:00:34]} Nf6 {[%emt 0:00:19]} 3. g3 {[%emt 0:00:14]} Bc5 {[%emt 0:00:51]} 4. e3 {[%emt 0:00:29]} O-O {[%emt 0:03:30]} 5. Bg2 {[%emt 0:00:34]} Nc6 {[%emt 0:01:08]} 6. Nge2 {[%emt 0:01:44]} d6 {[%emt 0:01:24]} 7. Na4 {[%emt 0:03:05]} Bb4 {[%emt 0:00:55]} 8. a3 {[%emt 0:00:21]} Ba5 {[%emt 0:00:07]} 9. b4 {[%emt 0:00:34]} Bb6 {[%emt 0:00:00]} 10. Nxb6 {[%emt 0:00:17]} axb6 {[%emt 0:00:04]} 11. Bb2 {[%emt 0:00:13]} Bf5 {[%emt 0:00:54]} 12. d4 {[%emt 0:01:16]} exd4 {[%emt 0:06:04]} 13. Nxd4 {[%emt 0:01:25]} Nxd4 {[%emt 0:01:08]} 14. Qxd4 {[%emt 0:01:46]} Qc8 {[%emt 0:23:03]} 15. h4 {[%emt 0:13:06]} Rd8 {[%emt 0:15:29]} 16. Qc3 {[%emt 0:09:57]} c6 {[%emt 0:06:47]} 17. h5 {[%emt 0:06:25]} h6 {[%emt 0:05:31]} 18. Bf3 {[%emt 0:21:54]} Bg4 {[%emt 0:11:46]} 19. Bxg4 {[%emt 0:06:39]} Qxg4 {[%emt 0:00:02]} 20. Rh4 {[%emt 0:00:21]} Qe6 {[%emt 0:04:17]} 21. O-O-O {[%emt 0:01:23]} Rac8 {[%emt 0:00:25]} 22. Kb1 {[%emt 0:01:57]} Qf5+ {[%emt 0:01:19]} 23. e4 {[%emt 0:01:39]} Qxf2 {[%emt 0:08:55]} 24. Rf4 {[%emt 0:00:17]} Qe2 {[%emt 0:00:38]} 25. Rdf1 {[%emt 0:01:29]} Qxh5 {[%emt 0:00:35]} 26. Rxf6 {[%emt 0:02:06]} gxf6 {[%emt 0:00:02]} 27. Qxf6 {[%emt 0:00:02]} Kf8 {[%emt 0:00:02]} 28. g4 {[%emt 0:04:37]} Qg6 {[%emt 0:00:43]} 29. Qxg6 {[%emt 0:00:04]} 0-1

[Event "94th FRA-ch Open C 2019"]
[Site "Chartres"]
[Date "2019.08.24"]
[Round "8.5"]
[White "Brun, Pierre"]
[Black "Bustos-Salinas, Thomas"]
[Result "1-0"]
[ECO "B24"]
[WhiteElo "1648"]
[BlackElo "1574"]
[Annotator "NA"]
[PlyCount "77"]
[EventDate "2019.08.17"]
[EventType "swiss"]
[EventCountry "FRA"]
[SourceTitle "playchess.com"]
[Source "ChessBase"]
[SourceQuality "1"]
[TimeControl "40/5400+30:1800+30"]

1. e4 {[%emt 0:00:00]} c5 {[%emt 0:00:00]} 2. Nc3 {[%emt 0:00:00]} Nc6 {[%emt 0:00:00]} 3. g3 {[%emt 0:00:00]} g6 {[%emt 0:00:06]} 4. Bg2 {[%emt 0:00:00]} Bg7 {[%emt 0:00:15]} 5. Nge2 {[%emt 0:00:00]} e6 {[%emt 0:00:44]} 6. d3 {[%emt 0:01:09]} Nge7 {[%emt 0:00:52]} 7. O-O {[%emt 0:00:37]} O-O {[%emt 0:01:12]} 8. f4 {[%emt 0:00:06]} d5 {[%emt 0:01:35]} 9. e5 {[%emt 0:02:24]} Nf5 {[%emt 0:02:25]} 10. g4 {[%emt 0:04:30]} Nfd4 {[%emt 0:00:46]} 11. Nxd4 {[%emt 0:00:32]} Nxd4 {[%emt 0:00:11]} 12. Nb1 {[%emt 0:01:46]} Bd7 {[%emt 0:11:30]} 13. c3 {[%emt 0:00:12]} Nc6 {[%emt 0:00:53]} 14. g5 {[%emt 0:07:00]} Ne7 {[%emt 0:05:13]} 15. Nd2 {[%emt 0:06:34]} Nf5 {[%emt 0:04:34]} 16. Nf3 {[%emt 0:00:32]} Bc6 {[%emt 0:03:21]} 17. d4 {[%emt 0:02:33]} Bb5 {[%emt 0:05:01]} 18. Rf2 {[%emt 0:05:36]} b6 {[%emt 0:06:08]} 19. Bh3 {[%emt 0:04:30]} Rc8 {[%emt 0:10:50]} 20. Bxf5 {[%emt 0:02:24]} exf5 {[%emt 0:04:32]} 21. h4 {[%emt 0:04:06]} Qd7 {[%emt 0:02:39]} 22. h5 {[%emt 0:03:46]} Qe6 {[%emt 0:02:18]} 23. Rh2 {[%emt 0:03:01]} a5 {[%emt 0:03:39]} 24. Qe1 {[%emt 0:02:41]} Bd3 {[%emt 0:03:38]} 25. hxg6 {[%emt 0:04:36]} Qxg6 {[%emt 0:01:25]} 26. Nh4 {[%emt 0:00:05]} Qe6 {[%emt 0:00:48]} 27. Qg3 {[%emt 0:01:04]} Be4 {[%emt 0:00:40]} 28. Be3 {[%emt 0:00:11]} cxd4 {[%emt 0:02:30]} 29. Bxd4 {[%emt 0:00:18]} b5 {[%emt 0:01:20]} 30. Qh3 {[%emt 0:02:29]} Rc6 {[%emt 0:05:01]} 31. Re1 {[%emt 0:06:37]} Rb8 {[%emt 0:04:50]} 32. Rxe4 {[%emt 0:14:27]} dxe4 {[%emt 0:01:00]} 33. Nxf5 {[%emt 0:00:16]} h5 {[%emt 0:02:37]} 34. gxh6 {[%emt 0:00:19]} Bxh6 {[%emt 0:00:58]} 35. Nxh6+ {[%emt 0:00:10]} Qxh6 {[%emt 0:00:08]} 36. Qxh6 {[%emt 0:00:05]} Rxh6 {[%emt 0:00:07]} 37. Rxh6 {[%emt 0:00:06]} b4 {[%emt 0:00:21]} 38. e6 {[%emt 0:00:31]} f6 {[%emt 0:01:12]} 39. Bxf6 {[%emt 0:00:10]} 1-0

[Event "94th FRA-ch Open C 2019"]
[Site "Chartres"]
[Date "2019.08.24"]
[Round "8.6"]
[White "Silvera, Ruben"]
[Black "Bernard, Thomas"]
[Result "1-0"]
[ECO "A01"]
[WhiteElo "1747"]
[BlackElo "1689"]
[Annotator "NA"]
[PlyCount "53"]
[EventDate "2019.08.17"]
[EventType "swiss"]
[EventCountry "FRA"]
[SourceTitle "playchess.com"]
[Source "ChessBase"]
[SourceQuality "1"]
[TimeControl "40/5400+30:1800+30"]

1. b3 {[%emt 0:00:00]} e5 {[%emt 0:00:25]} 2. Bb2 {[%emt 0:00:00]} Nc6 {[%emt 0:00:14]} 3. e3 {[%emt 0:00:00]} Nf6 {[%emt 0:00:29]} 4. Bb5 {[%emt 0:00:48]} Bd6 {[%emt 0:01:46]} 5. Na3 {[%emt 0:00:06]} Na5 {[%emt 0:03:27]} 6. Be2 {[%emt 0:00:54]} c6 {[%emt 0:04:16]} 7. c4 {[%emt 0:05:34]} Qe7 {[%emt 0:08:24]} 8. Nc2 {[%emt 0:00:42]} b6 {[%emt 0:00:43]} 9. Nf3 {[%emt 0:07:28]} Bc7 {[%emt 0:08:08]} 10. b4 {[%emt 0:26:30]} Nb7 {[%emt 0:02:13]} 11. d3 {[%emt 0:01:02]} d5 {[%emt 0:05:37]} 12. Nd2 {[%emt 0:06:17]} Bf5 {[%emt 0:08:25]} 13. cxd5 {[%emt 0:47:09]} cxd5 {[%emt 0:10:08]} 14. e4 {[%emt 0:00:00]} dxe4 {[%emt 0:08:27]} 15. dxe4 {[%emt 0:00:00]} Nxe4 {[%emt 0:03:14]} 16. Bb5+ {[%emt 0:00:00]} Kf8 {[%emt 0:02:47]} 17. Qf3 {[%emt 0:00:00]} Ned6 {[%emt 0:04:19]} 18. Ne3 {[%emt 0:00:00]} e4 {[%emt 0:11:56]} 19. Bxg7+ {[%emt 0:00:00]} Kxg7 {[%emt 0:04:17]} 20. Nxf5+ {[%emt 0:00:00]} Kf8 {[%emt 0:03:20]} 21. Qc3 {[%emt 0:00:00]} Qg5 {[%emt 0:02:31]} 22. Qxh8+ {[%emt 0:00:00]} Qg8 {[%emt 0:02:09]} 23. Qxg8+ {[%emt 0:05:00]} Kxg8 {[%emt 0:04:15]} 24. Nxd6 {[%emt 0:00:00]} Rd8 {[%emt 0:00:00]} 25. Nxb7 {[%emt 0:00:00]} Rxd2 {[%emt 0:00:00]} 26. Kxd2 {[%emt 0:00:00]} Bd8 {[%emt 0:00:00]} 27. Nxd8 {[%emt 0:00:00]} 1-0

[Event "94th FRA-ch Open C 2019"]
[Site "Chartres"]
[Date "2019.08.25"]
[Round "9.1"]
[White "Leclerc, Alain"]
[Black "Cregut, Marian"]
[Result "1/2-1/2"]
[ECO "B23"]
[WhiteElo "1787"]
[BlackElo "1717"]
[Annotator "NA"]
[PlyCount "138"]
[EventDate "2019.08.17"]
[EventType "swiss"]
[EventCountry "FRA"]
[SourceTitle "playchess.com"]
[Source "ChessBase"]
[SourceQuality "1"]
[TimeControl "40/5400+30:1800+30"]

1. e4 {[%emt 0:00:00]} c5 {[%emt 0:00:00]} 2. Nc3 {[%emt 0:00:00]} a6 {[%emt 0:00:41]} 3. g3 {[%emt 0:01:25]} b5 {[%emt 0:01:29]} 4. Bg2 {[%emt 0:00:59]} Bb7 {[%emt 0:01:16]} 5. d3 {[%emt 0:01:57]} d6 {[%emt 0:08:37]} 6. Be3 {[%emt 0:10:13]} g6 {[%emt 0:07:11]} 7. Qd2 {[%emt 0:00:17]} Bg7 {[%emt 0:02:44]} 8. Nge2 {[%emt 0:00:14]} Nf6 {[%emt 0:08:13]} 9. h3 {[%emt 0:05:10]} b4 {[%emt 0:05:55]} 10. Nd1 {[%emt 0:00:05]} Nbd7 {[%emt 0:01:17]} 11. Bh6 {[%emt 0:11:49]} O-O {[%emt 0:03:41]} 12. Bxg7 {[%emt 0:00:08]} Kxg7 {[%emt 0:00:54]} 13. Ne3 {[%emt 0:01:32]} Qc7 {[%emt 0:02:08]} 14. f4 {[%emt 0:03:58]} e6 {[%emt 0:04:48]} 15. O-O {[%emt 0:00:23]} d5 {[%emt 0:05:24]} 16. e5 {[%emt 0:00:27]} Ne8 {[%emt 0:03:22]} 17. c3 {[%emt 0:15:57]} bxc3 {[%emt 0:07:51]} 18. bxc3 {[%emt 0:00:07]} Rc8 {[%emt 0:03:16]} 19. Ng4 {[%emt 0:18:59]} f5 {[%emt 0:08:33]} 20. Nf2 {[%emt 0:00:19]} Qa5 {[%emt 0:01:05]} 21. Rab1 {[%emt 0:02:26]} Bc6 {[%emt 0:00:56]} 22. Rb2 {[%emt 0:01:01]} Nc7 {[%emt 0:02:19]} 23. Rfb1 {[%emt 0:01:57]} Rb8 {[%emt 0:01:32]} 24. Rxb8 {[%emt 0:00:12]} Rxb8 {[%emt 0:00:02]} 25. Rxb8 {[%emt 0:00:14]} Nxb8 {[%emt 0:00:03]} 26. Qb2 {[%emt 0:03:27]} Qb5 {[%emt 0:03:52]} 27. Qxb5 {[%emt 0:00:33]} axb5 {[%emt 0:00:46]} 28. d4 {[%emt 0:02:08]} Nca6 {[%emt 0:00:50]} 29. Nd3 {[%emt 0:00:44]} Nd7 {[%emt 0:01:42]} 30. a3 {[%emt 0:18:19]} Kf7 {[%emt 0:01:16]} 31. Kf2 {[%emt 0:00:00]} Ke7 {[%emt 0:01:02]} 32. Ke3 {[%emt 0:00:00]} Kd8 {[%emt 0:00:54]} 33. Nxc5 {[%emt 0:00:00]} Ndxc5 {[%emt 0:00:58]} 34. dxc5 {[%emt 0:00:00]} d4+ {[%emt 0:01:02]} 35. Nxd4 {[%emt 0:00:00]} Bxg2 {[%emt 0:00:18]} 36. Nxe6+ {[%emt 0:00:00]} Ke7 {[%emt 0:00:49]} 37. Nd4 {[%emt 0:00:00]} Nxc5 {[%emt 0:00:51]} 38. Nxb5 {[%emt 0:00:00]} Bxh3 {[%emt 0:00:34]} 39. Kd4 {[%emt 0:00:00]} Ne4 {[%emt 0:00:44]} 40. a4 {[%emt 0:00:00]} Nxg3 {[%emt 0:00:31]} 41. a5 {[%emt 0:18:12]} Kd7 {[%emt 0:30:42]} 42. a6 {[%emt 0:00:11]} Kc6 {[%emt 0:00:22]} 43. e6 {[%emt 0:11:43]} Nh5 {[%emt 0:02:34]} 44. a7 {[%emt 0:04:34]} Kb7 {[%emt 0:00:55]} 45. e7 {[%emt 0:00:00]} Ng7 {[%emt 0:00:00]} 46. Nd6+ {[%emt 0:00:00]} Kxa7 {[%emt 0:00:00]} 47. e8=Q {[%emt 0:03:50]} Nxe8 {[%emt 0:00:00]} 48. Nxe8 {[%emt 0:00:30]} h5 {[%emt 0:10:01]} 49. Nd6 {[%emt 0:00:00]} Bg2 {[%emt 0:00:00]} 50. Ke3 {[%emt 0:00:00]} Kb6 {[%emt 0:00:00]} 51. Nc4+ {[%emt 0:00:00]} Kb5 {[%emt 0:00:00]} 52. Ne5 {[%emt 0:00:00]} h4 {[%emt 0:00:00]} 53. Nxg6 {[%emt 0:00:00]} h3 {[%emt 0:00:00]} 54. Kf2 {[%emt 0:00:00]} Be4 {[%emt 0:00:00]} 55. Kg3 {[%emt 0:00:00]} Kc4 {[%emt 0:00:00]} 56. Kxh3 {[%emt 0:00:00]} Kxc3 {[%emt 0:00:00]} 57. Kh4 {[%emt 0:00:00]} Kc4 {[%emt 0:00:00]} 58. Kg5 {[%emt 0:00:04]} Kd5 {[%emt 0:00:00]} 59. Kf6 {[%emt 0:00:19]} Bb1 {[%emt 0:00:00]} 60. Ne7+ {[%emt 0:00:17]} Kd6 {[%emt 0:00:00]} 61. Nxf5+ {[%emt 0:00:06]} Kd7 {[%emt 0:00:00]} 62. Ke5 {[%emt 0:01:16]} Ke8 {[%emt 0:00:00]} 63. Nd6+ {[%emt 0:00:14]} Ke7 {[%emt 0:00:00]} 64. Ne4 {[%emt 0:00:10]} Kf7 {[%emt 0:00:00]} 65. f5 {[%emt 0:00:11]} Kf8 {[%emt 0:00:00]} 66. f6 {[%emt 0:00:22]} Ba2 {[%emt 0:00:00]} 67. Ng5 {[%emt 0:01:14]} Ke8 {[%emt 0:00:00]} 68. Ne6 {[%emt 0:01:13]} Kf7 {[%emt 0:00:00]} 69. Ng5+ {[%emt 0:01:09]} Kf8 {[%emt 0:00:00]} 1/2-1/2